[Event "Titled Tuesday Blitz January 10 Early 2023"]
[White "Svidler, Peter"]
[Black "Piesik, Piotr"]
[WhiteFideId "4102142"]
[BlackFideId "1136194"]
[WhiteElo "2683"]
[BlackElo "2426"]
[Result "1-0"]
[Round "02"]
[TimeControl "180+2"]
[Date "2023.01.10"]
[WhiteClock "0:00:13"]
[BlackClock "0:00:22"]

1. e4 {[%clk 0:03:00]}  e6 {[%clk 0:02:56]} 2. d4 {[%clk 0:03:00]}  d5 {[%clk 0:02:56]} 3. e5 {[%clk 0:03:00]}  c5 {[%clk 0:02:56]} 4. c3 {[%clk 0:03:00]}  Nc6 {[%clk 0:02:57]} 5. Nf3 {[%clk 0:02:59]}  Bd7 {[%clk 0:02:56]} 6. Bd3 {[%clk 0:02:59]}  cxd4 {[%clk 0:02:49]} 7. cxd4 {[%clk 0:02:31]}  Qb6 {[%clk 0:02:49]} 8. O-O {[%clk 0:02:02]}  Nxd4 {[%clk 0:02:48]} 9. Nxd4 {[%clk 0:02:02]}  Qxd4 {[%clk 0:02:49]} 10. Nc3 {[%clk 0:02:02]}  Qxe5 {[%clk 0:02:45]} 11. Re1 {[%clk 0:02:01]}  Qd6 {[%clk 0:02:45]} 12. Nb5 {[%clk 0:01:56]}  Qb8 {[%clk 0:02:46]} 13. Qf3 {[%clk 0:01:54]}  Bd6 {[%clk 0:02:45]} 14. Nxd6+ {[%clk 0:01:52]}  Qxd6 {[%clk 0:02:45]} 15. Bf4 {[%clk 0:01:53]}  Qe7 {[%clk 0:02:39]} 16. Qg3 {[%clk 0:01:52]}  f6 {[%clk 0:02:27]} 17. Bd6 {[%clk 0:01:50]}  Qf7 {[%clk 0:02:27]} 18. Rac1 {[%clk 0:01:49]}  Ne7 {[%clk 0:02:08]} 19. Rc7 {[%clk 0:01:45]}  Rd8 {[%clk 0:02:08]} 20. Rxb7 {[%clk 0:01:37]}  O-O {[%clk 0:02:03]} 21. Rxa7 {[%clk 0:01:32]}  Rfe8 {[%clk 0:02:03]} 22. Bc5 {[%clk 0:01:05]}  Nc6 {[%clk 0:02:00]} 23. Rc7 {[%clk 0:01:03]}  Ne5 {[%clk 0:01:59]} 24. Bf1 {[%clk 0:01:03]}  Rc8 {[%clk 0:01:58]} 25. Rxc8 {[%clk 0:01:01]}  Rxc8 {[%clk 0:01:58]} 26. b4 {[%clk 0:00:57]}  Ba4 {[%clk 0:01:46]} 27. Qe3 {[%clk 0:00:53]}  Nd7 {[%clk 0:01:32]} 28. Bd6 {[%clk 0:00:47]}  e5 {[%clk 0:01:32]} 29. Qa7 {[%clk 0:00:46]}  Bc2 {[%clk 0:01:25]} 30. Qb7 {[%clk 0:00:35]}  Rc3 {[%clk 0:01:16]} 31. Qa8+ {[%clk 0:00:32]}  Nf8 {[%clk 0:01:15]} 32. b5 {[%clk 0:00:29]}  d4 {[%clk 0:01:02]} 33. b6 {[%clk 0:00:29]}  d3 {[%clk 0:00:55]} 34. Bb4 {[%clk 0:00:29]}  Rc4 {[%clk 0:00:43]} 35. Bxd3 {[%clk 0:00:23]}  Rxb4 {[%clk 0:00:34]} 36. Bxc2 {[%clk 0:00:23]}  Rxb6 {[%clk 0:00:34]} 37. Bb3 {[%clk 0:00:13]}  Rxb3 {[%clk 0:00:34]} 38. axb3 {[%clk 0:00:14]}  Qxb3 {[%clk 0:00:34]} 39. h4 {[%clk 0:00:15]}  Qf7 {[%clk 0:00:33]} 40. Rc1 {[%clk 0:00:15]}  g6 {[%clk 0:00:32]} 41. Qd8 {[%clk 0:00:14]}  f5 {[%clk 0:00:23]} 42. g3 {[%clk 0:00:14]}  e4 {[%clk 0:00:23]} 43. Rc7 {[%clk 0:00:14]}  Qe6 {[%clk 0:00:22]} 44. Qd4 {[%clk 0:00:13]} 1-0


[Site "https://www.chess.com"]

[Event "Titled Tuesday Blitz January 10 Early 2023"]
[White "Dardha, Daniel"]
[Black "Blanco Ronquillo, Humberto L."]
[WhiteFideId "240990"]
[BlackFideId "3504239"]
[WhiteElo "2631"]
[BlackElo "2442"]
[Result "0-1"]
[Round "02"]
[TimeControl "180+2"]
[Date "2023.01.10"]
[WhiteClock "0:00:01"]
[BlackClock "0:00:26"]

1. d4 {[%clk 0:03:00]}  d5 {[%clk 0:02:59]} 2. c4 {[%clk 0:03:00]}  e6 {[%clk 0:02:59]} 3. Nf3 {[%clk 0:02:59]}  Nf6 {[%clk 0:02:58]} 4. Nc3 {[%clk 0:02:59]}  Nbd7 {[%clk 0:02:58]} 5. g4 {[%clk 0:02:57]}  dxc4 {[%clk 0:02:48]} 6. g5 {[%clk 0:02:57]}  Nd5 {[%clk 0:02:48]} 7. e4 {[%clk 0:02:58]}  Nxc3 {[%clk 0:02:44]} 8. bxc3 {[%clk 0:02:59]}  b6 {[%clk 0:02:45]} 9. Bxc4 {[%clk 0:02:56]}  Bb7 {[%clk 0:02:45]} 10. Qe2 {[%clk 0:02:53]}  h6 {[%clk 0:02:33]} 11. g6 {[%clk 0:02:45]}  Qf6 {[%clk 0:02:31]} 12. gxf7+ {[%clk 0:02:44]}  Qxf7 {[%clk 0:02:32]} 13. d5 {[%clk 0:02:30]}  exd5 {[%clk 0:02:19]} 14. exd5+ {[%clk 0:02:29]}  Qe7 {[%clk 0:02:19]} 15. Be3 {[%clk 0:02:08]}  O-O-O {[%clk 0:02:14]} 16. Nd4 {[%clk 0:02:08]}  Nf6 {[%clk 0:02:06]} 17. Nc6 {[%clk 0:01:46]}  Qa3 {[%clk 0:02:04]} 18. O-O {[%clk 0:01:38]}  Bd6 {[%clk 0:01:36]} 19. Nxd8 {[%clk 0:01:22]}  Rxd8 {[%clk 0:01:37]} 20. Bd4 {[%clk 0:01:17]}  Nxd5 {[%clk 0:01:10]} 21. Rfe1 {[%clk 0:01:00]}  Nf4 {[%clk 0:00:59]} 22. Qg4+ {[%clk 0:00:58]}  Kb8 {[%clk 0:01:00]} 23. Rad1 {[%clk 0:00:42]}  Qa4 {[%clk 0:00:57]} 24. Be5 {[%clk 0:00:32]}  Qc6 {[%clk 0:00:38]} 25. f3 {[%clk 0:00:33]}  Qc5+ {[%clk 0:00:38]} 26. Kh1 {[%clk 0:00:33]}  g5 {[%clk 0:00:33]} 27. Bxf4 {[%clk 0:00:25]}  Qxc4 {[%clk 0:00:31]} 28. Rd4 {[%clk 0:00:09]}  Qxc3 {[%clk 0:00:31]} 29. Bg3 {[%clk 0:00:07]}  Bxf3+ {[%clk 0:00:28]} 30. Kg1 {[%clk 0:00:06]}  Bxg4 {[%clk 0:00:28]} 31. Rxg4 {[%clk 0:00:04]}  Bxg3 {[%clk 0:00:27]} 32. Rf1 {[%clk 0:00:03]}  Bf4 {[%clk 0:00:26]} 33. Rg2 {[%clk 0:00:03]}  Qe3+ {[%clk 0:00:26]} 34. Kh1 {[%clk 0:00:04]}  Rd2 {[%clk 0:00:26]} 35. Rxd2 {[%clk 0:00:04]}  Qxd2 {[%clk 0:00:27]} 36. Rxf4 {[%clk 0:00:02]}  gxf4 {[%clk 0:00:26]} 37. h4 {[%clk 0:00:01]}  f3 {[%clk 0:00:26]} 0-1


[Site "https://www.chess.com"]

[Event "Titled Tuesday Blitz January 10 Early 2023"]
[White "Xu, Yi"]
[Black "Djokovic, Nebojsa"]
[WhiteFideId "8605564"]
[BlackFideId "938300"]
[WhiteElo "2527"]
[BlackElo "2119"]
[Result "1/2-1/2"]
[Round "02"]
[TimeControl "180+2"]
[Date "2023.01.10"]
[WhiteClock "0:00:19"]
[BlackClock "0:00:06"]

1. e4 {[%clk 0:03:00]}  e6 {[%clk 0:03:00]} 2. d4 {[%clk 0:03:00]}  d5 {[%clk 0:03:00]} 3. e5 {[%clk 0:03:00]}  c5 {[%clk 0:03:00]} 4. c3 {[%clk 0:03:01]}  Nc6 {[%clk 0:03:01]} 5. Nf3 {[%clk 0:03:02]}  Nge7 {[%clk 0:03:01]} 6. Bd3 {[%clk 0:02:57]}  cxd4 {[%clk 0:03:00]} 7. cxd4 {[%clk 0:02:57]}  Nf5 {[%clk 0:03:00]} 8. Bxf5 {[%clk 0:02:57]}  exf5 {[%clk 0:03:01]} 9. O-O {[%clk 0:02:52]}  Be7 {[%clk 0:02:59]} 10. Na3 {[%clk 0:02:48]}  Be6 {[%clk 0:02:53]} 11. Nc2 {[%clk 0:02:48]}  h6 {[%clk 0:02:50]} 12. Nfe1 {[%clk 0:02:38]}  O-O {[%clk 0:02:43]} 13. Be3 {[%clk 0:02:37]}  Rc8 {[%clk 0:02:18]} 14. Nd3 {[%clk 0:02:35]}  a6 {[%clk 0:01:53]} 15. g3 {[%clk 0:02:35]}  b5 {[%clk 0:01:53]} 16. h4 {[%clk 0:02:35]}  Na5 {[%clk 0:01:51]} 17. h5 {[%clk 0:02:24]}  Nc4 {[%clk 0:01:51]} 18. Bf4 {[%clk 0:02:20]}  Qc7 {[%clk 0:01:38]} 19. Ne3 {[%clk 0:02:14]}  Nxe3 {[%clk 0:01:25]} 20. Bxe3 {[%clk 0:02:14]}  Qc2 {[%clk 0:01:25]} 21. Rc1 {[%clk 0:02:10]}  Qxd1 {[%clk 0:01:23]} 22. Rfxd1 {[%clk 0:02:11]}  Rfd8 {[%clk 0:01:19]} 23. Bd2 {[%clk 0:02:05]}  Rc4 {[%clk 0:01:17]} 24. Be3 {[%clk 0:02:02]}  Rdc8 {[%clk 0:01:15]} 25. b3 {[%clk 0:02:02]}  Rc2 {[%clk 0:01:12]} 26. Rxc2 {[%clk 0:01:54]}  Rxc2 {[%clk 0:01:11]} 27. Rd2 {[%clk 0:01:55]}  Rc3 {[%clk 0:00:59]} 28. Kf1 {[%clk 0:01:55]}  Kf8 {[%clk 0:00:57]} 29. Ke2 {[%clk 0:01:55]}  Ke8 {[%clk 0:00:58]} 30. Ne1 {[%clk 0:01:47]}  f4 {[%clk 0:00:49]} 31. Bxf4 {[%clk 0:01:37]}  Bg4+ {[%clk 0:00:50]} 32. Kf1 {[%clk 0:01:21]}  Bxh5 {[%clk 0:00:41]} 33. Rc2 {[%clk 0:01:20]}  Bb4 {[%clk 0:00:36]} 34. Be3 {[%clk 0:01:03]}  Bg6 {[%clk 0:00:33]} 35. Rxc3 {[%clk 0:00:56]}  Bxc3 {[%clk 0:00:34]} 36. Ke2 {[%clk 0:00:57]}  Bb1 {[%clk 0:00:24]} 37. a4 {[%clk 0:00:57]}  bxa4 {[%clk 0:00:23]} 38. bxa4 {[%clk 0:00:57]}  Ba2 {[%clk 0:00:20]} 39. Nd3 {[%clk 0:00:51]}  Bc4 {[%clk 0:00:17]} 40. f4 {[%clk 0:00:49]}  Kd7 {[%clk 0:00:16]} 41. f5 {[%clk 0:00:48]}  g6 {[%clk 0:00:16]} 42. fxg6 {[%clk 0:00:26]}  fxg6 {[%clk 0:00:16]} 43. Bf2 {[%clk 0:00:26]}  Ke6 {[%clk 0:00:13]} 44. Ke3 {[%clk 0:00:27]}  Bxd3 {[%clk 0:00:12]} 45. Kxd3 {[%clk 0:00:27]}  Bb4 {[%clk 0:00:11]} 46. g4 {[%clk 0:00:27]}  h5 {[%clk 0:00:11]} 47. gxh5 {[%clk 0:00:27]}  gxh5 {[%clk 0:00:12]} 48. Bh4 {[%clk 0:00:27]}  Kf5 {[%clk 0:00:11]} 49. Ke3 {[%clk 0:00:25]}  Bc3 {[%clk 0:00:08]} 50. Kd3 {[%clk 0:00:24]}  Bb4 {[%clk 0:00:08]} 51. Ke3 {[%clk 0:00:24]}  Bf8 {[%clk 0:00:09]} 52. Kf3 {[%clk 0:00:20]}  Bh6 {[%clk 0:00:08]} 53. Ke2 {[%clk 0:00:18]}  Bf8 {[%clk 0:00:06]} 54. Kf3 {[%clk 0:00:19]}  Bb4 {[%clk 0:00:06]} 55. Ke3 {[%clk 0:00:19]} 1/2-1/2


[Site "https://www.chess.com"]

[Event "Titled Tuesday Blitz January 10 Early 2023"]
[White "Ibarra Jerez, Jose Carlos"]
[Black "Oro, Faustino"]
[WhiteFideId "2226332"]
[BlackFideId "20000197"]
[WhiteElo "2563"]
[BlackElo "2269"]
[Result "1-0"]
[Round "02"]
[TimeControl "180+2"]
[Date "2023.01.10"]
[WhiteClock "0:01:29"]
[BlackClock "0:00:02"]

1. e4 {[%clk 0:03:00]}  e5 {[%clk 0:02:57]} 2. Nf3 {[%clk 0:03:01]}  Nc6 {[%clk 0:02:57]} 3. d4 {[%clk 0:02:59]}  exd4 {[%clk 0:02:57]} 4. Nxd4 {[%clk 0:03:00]}  Bc5 {[%clk 0:02:57]} 5. Nb3 {[%clk 0:03:00]}  Bb6 {[%clk 0:02:56]} 6. Qe2 {[%clk 0:03:01]}  Nf6 {[%clk 0:02:53]} 7. e5 {[%clk 0:03:01]}  Nd5 {[%clk 0:02:40]} 8. c4 {[%clk 0:03:01]}  Nde7 {[%clk 0:02:18]} 9. c5 {[%clk 0:03:01]}  Ba5+ {[%clk 0:02:17]} 10. Nxa5 {[%clk 0:03:02]}  Nxa5 {[%clk 0:02:12]} 11. Nc3 {[%clk 0:03:02]}  O-O {[%clk 0:02:03]} 12. Bg5 {[%clk 0:03:00]}  Nac6 {[%clk 0:02:00]} 13. O-O-O {[%clk 0:02:57]}  Qe8 {[%clk 0:01:40]} 14. Nb5 {[%clk 0:02:56]}  Qd8 {[%clk 0:01:26]} 15. Qe4 {[%clk 0:02:56]}  h6 {[%clk 0:01:19]} 16. Bd3 {[%clk 0:02:54]}  g6 {[%clk 0:00:44]} 17. Bxh6 {[%clk 0:02:53]}  Nf5 {[%clk 0:00:39]} 18. Bxf8 {[%clk 0:02:46]}  Qxf8 {[%clk 0:00:33]} 19. Qd5 {[%clk 0:02:45]}  d6 {[%clk 0:00:23]} 20. Nxc7 {[%clk 0:02:41]}  Nb4 {[%clk 0:00:17]} 21. Qc4 {[%clk 0:02:36]}  dxc5 {[%clk 0:00:13]} 22. Bxf5 {[%clk 0:01:52]}  Bxf5 {[%clk 0:00:12]} 23. Nxa8 {[%clk 0:01:47]}  Be6 {[%clk 0:00:04]} 24. Qh4 {[%clk 0:01:41]}  Nxa2+ {[%clk 0:00:02]} 25. Kb1 {[%clk 0:01:41]}  Nb4 {[%clk 0:00:03]} 26. Rd8 {[%clk 0:01:35]}  Bf5+ {[%clk 0:00:02]} 27. Kc1 {[%clk 0:01:29]}  Nd3+ {[%clk 0:00:02]} 28. Kd2 {[%clk 0:01:29]} 1-0


[Site "https://www.chess.com"]

[Event "Titled Tuesday Blitz January 10 Early 2023"]
[White "Msellek, Ilyass"]
[Black "Kadric, Denis"]
[WhiteFideId "675938"]
[BlackFideId "14403803"]
[WhiteElo "2420"]
[BlackElo "2601"]
[Result "0-1"]
[Round "02"]
[TimeControl "180+2"]
[Date "2023.01.10"]
[WhiteClock "0:01:35"]
[BlackClock "0:02:14"]

1. d4 {[%clk 0:03:00]}  d6 {[%clk 0:03:00]} 2. Bf4 {[%clk 0:02:59]}  g6 {[%clk 0:02:59]} 3. e3 {[%clk 0:02:58]}  Bg7 {[%clk 0:03:00]} 4. h4 {[%clk 0:02:58]}  Nd7 {[%clk 0:02:56]} 5. h5 {[%clk 0:02:54]}  e5 {[%clk 0:02:56]} 6. Bg3 {[%clk 0:02:52]}  Ngf6 {[%clk 0:02:56]} 7. h6 {[%clk 0:02:52]}  Bf8 {[%clk 0:02:57]} 8. Nf3 {[%clk 0:02:48]}  e4 {[%clk 0:02:54]} 9. Nfd2 {[%clk 0:02:44]}  d5 {[%clk 0:02:55]} 10. c4 {[%clk 0:02:41]}  c6 {[%clk 0:02:55]} 11. Nc3 {[%clk 0:02:40]}  Nb6 {[%clk 0:02:56]} 12. cxd5 {[%clk 0:02:40]}  Nbxd5 {[%clk 0:02:43]} 13. Ndxe4 {[%clk 0:02:27]}  Nxe4 {[%clk 0:02:43]} 14. Nxe4 {[%clk 0:02:28]}  Bb4+ {[%clk 0:02:43]} 15. Nd2 {[%clk 0:02:28]}  Qg5 {[%clk 0:02:43]} 16. a3 {[%clk 0:02:21]}  Bg4 {[%clk 0:02:38]} 17. Be2 {[%clk 0:02:03]}  Nxe3 {[%clk 0:02:28]} 18. fxe3 {[%clk 0:01:59]}  Bxe2 {[%clk 0:02:28]} 19. Qxe2 {[%clk 0:01:42]}  Qxg3+ {[%clk 0:02:27]} 20. Kf1 {[%clk 0:01:38]}  Bxd2 {[%clk 0:02:19]} 21. Qxd2 {[%clk 0:01:39]}  O-O-O {[%clk 0:02:20]} 22. Rh3 {[%clk 0:01:38]}  Qg5 {[%clk 0:02:18]} 23. Rc1 {[%clk 0:01:35]}  Rhe8 {[%clk 0:02:15]} 24. Qa5 {[%clk 0:01:35]}  Qxa5 {[%clk 0:02:14]} 0-1


[Site "https://www.chess.com"]

[Event "Titled Tuesday Blitz January 10 Early 2023"]
[White "Kamsky, Gata"]
[Black "Guzman, Christopher"]
[WhiteFideId "2000024"]
[BlackFideId "6405096"]
[WhiteElo "2665"]
[BlackElo "2271"]
[Result "1-0"]
[Round "02"]
[TimeControl "180+2"]
[Date "2023.01.10"]
[WhiteClock "0:01:08"]
[BlackClock "0:01:47"]

1. e4 {[%clk 0:03:00]}  c6 {[%clk 0:02:58]} 2. d4 {[%clk 0:02:51]}  d5 {[%clk 0:02:59]} 3. exd5 {[%clk 0:02:51]}  cxd5 {[%clk 0:03:00]} 4. Bd3 {[%clk 0:02:52]}  Nf6 {[%clk 0:03:00]} 5. c3 {[%clk 0:02:51]}  Nc6 {[%clk 0:03:01]} 6. Bf4 {[%clk 0:02:51]}  Bg4 {[%clk 0:03:01]} 7. Qb3 {[%clk 0:02:47]}  Na5 {[%clk 0:03:01]} 8. Qa4+ {[%clk 0:02:40]}  Bd7 {[%clk 0:03:01]} 9. Qc2 {[%clk 0:02:39]}  Qb6 {[%clk 0:03:01]} 10. Nf3 {[%clk 0:02:27]}  Rc8 {[%clk 0:03:01]} 11. O-O {[%clk 0:02:25]}  Bb5 {[%clk 0:03:00]} 12. Bxb5+ {[%clk 0:02:23]}  Qxb5 {[%clk 0:03:00]} 13. Na3 {[%clk 0:02:23]}  Qb6 {[%clk 0:02:59]} 14. Qa4+ {[%clk 0:02:20]}  Nc6 {[%clk 0:02:58]} 15. Qb3 {[%clk 0:02:02]}  Qxb3 {[%clk 0:02:52]} 16. axb3 {[%clk 0:02:02]}  a6 {[%clk 0:02:52]} 17. b4 {[%clk 0:02:00]}  e6 {[%clk 0:02:49]} 18. b5 {[%clk 0:01:58]}  axb5 {[%clk 0:02:49]} 19. Nxb5 {[%clk 0:01:58]}  Be7 {[%clk 0:02:49]} 20. Na7 {[%clk 0:01:49]}  Rd8 {[%clk 0:02:38]} 21. Bc7 {[%clk 0:01:39]}  Rd7 {[%clk 0:02:35]} 22. Nxc6 {[%clk 0:01:40]}  bxc6 {[%clk 0:02:34]} 23. Ra8+ {[%clk 0:01:38]}  Bd8 {[%clk 0:02:34]} 24. Bb6 {[%clk 0:01:25]}  Ke7 {[%clk 0:02:06]} 25. Bc5+ {[%clk 0:01:24]}  Ke8 {[%clk 0:02:06]} 26. Ne5 {[%clk 0:01:24]}  Rb7 {[%clk 0:02:04]} 27. Nxc6 {[%clk 0:01:23]}  Kd7 {[%clk 0:02:00]} 28. Ne5+ {[%clk 0:01:23]}  Ke8 {[%clk 0:02:00]} 29. Bb4 {[%clk 0:01:13]}  Rb5 {[%clk 0:01:54]} 30. Rfa1 {[%clk 0:01:10]}  Nd7 {[%clk 0:01:47]} 31. Nc6 {[%clk 0:01:08]} 1-0


[Site "https://www.chess.com"]

[Event "Titled Tuesday Blitz January 10 Early 2023"]
[White "Moroni, Luca Jr"]
[Black "Royal, Shreyas"]
[WhiteFideId "865834"]
[BlackFideId "448869"]
[WhiteElo "2535"]
[BlackElo "2438"]
[Result "1-0"]
[Round "02"]
[TimeControl "180+2"]
[Date "2023.01.10"]
[WhiteClock "0:00:06"]
[BlackClock "0:00:40"]

1. d4 {[%clk 0:03:00]}  d5 {[%clk 0:02:58]} 2. Bf4 {[%clk 0:02:58]}  Nf6 {[%clk 0:02:57]} 3. e3 {[%clk 0:02:57]}  c5 {[%clk 0:02:56]} 4. dxc5 {[%clk 0:02:54]}  Nc6 {[%clk 0:02:56]} 5. Bb5 {[%clk 0:02:53]}  Qa5+ {[%clk 0:02:53]} 6. Nc3 {[%clk 0:02:53]}  a6 {[%clk 0:02:44]} 7. Bxc6+ {[%clk 0:02:53]}  bxc6 {[%clk 0:02:45]} 8. Qd4 {[%clk 0:02:53]}  Ne4 {[%clk 0:02:41]} 9. b4 {[%clk 0:02:46]}  Qa3 {[%clk 0:02:40]} 10. Nxe4 {[%clk 0:02:44]}  dxe4 {[%clk 0:02:41]} 11. Ne2 {[%clk 0:02:33]}  Bf5 {[%clk 0:02:35]} 12. O-O {[%clk 0:02:20]}  f6 {[%clk 0:02:33]} 13. Bc7 {[%clk 0:02:16]}  Kf7 {[%clk 0:02:22]} 14. Ng3 {[%clk 0:02:10]}  e5 {[%clk 0:02:22]} 15. Qd2 {[%clk 0:01:59]}  Be6 {[%clk 0:02:20]} 16. Nxe4 {[%clk 0:01:57]}  Bd5 {[%clk 0:02:18]} 17. Nd6+ {[%clk 0:01:54]}  Bxd6 {[%clk 0:02:18]} 18. cxd6 {[%clk 0:01:50]}  Ra7 {[%clk 0:02:13]} 19. Rfc1 {[%clk 0:01:36]}  Qb2 {[%clk 0:02:12]} 20. f3 {[%clk 0:01:19]}  f5 {[%clk 0:02:07]} 21. Qd3 {[%clk 0:01:16]}  e4 {[%clk 0:02:03]} 22. fxe4 {[%clk 0:01:15]}  fxe4 {[%clk 0:02:04]} 23. Rf1+ {[%clk 0:01:12]}  Ke6 {[%clk 0:02:03]} 24. Qe2 {[%clk 0:01:10]}  h5 {[%clk 0:02:01]} 25. a3 {[%clk 0:00:59]}  Raa8 {[%clk 0:01:49]} 26. h3 {[%clk 0:00:50]}  Rag8 {[%clk 0:01:45]} 27. Rad1 {[%clk 0:00:43]}  Qc3 {[%clk 0:01:38]} 28. Rd4 {[%clk 0:00:40]}  Kd7 {[%clk 0:01:33]} 29. Qd2 {[%clk 0:00:32]}  Qxa3 {[%clk 0:01:31]} 30. c4 {[%clk 0:00:29]}  Be6 {[%clk 0:01:30]} 31. Rxe4 {[%clk 0:00:29]}  Rf8 {[%clk 0:01:30]} 32. Rd1 {[%clk 0:00:22]}  Rf6 {[%clk 0:01:25]} 33. b5 {[%clk 0:00:18]}  axb5 {[%clk 0:01:21]} 34. cxb5 {[%clk 0:00:19]}  cxb5 {[%clk 0:01:22]} 35. Qe2 {[%clk 0:00:19]}  Qb3 {[%clk 0:01:19]} 36. Rc1 {[%clk 0:00:16]}  Rhf8 {[%clk 0:01:19]} 37. Qxh5 {[%clk 0:00:13]}  Qb2 {[%clk 0:01:13]} 38. Qc5 {[%clk 0:00:11]}  Ke8 {[%clk 0:00:40]} 39. d7+ {[%clk 0:00:08]}  Kf7 {[%clk 0:00:41]} 40. d8=Q {[%clk 0:00:07]}  Rxd8 {[%clk 0:00:41]} 41. Bxd8 {[%clk 0:00:08]}  Rf5 {[%clk 0:00:42]} 42. Qc7+ {[%clk 0:00:07]}  Kg8 {[%clk 0:00:43]} 43. Rxe6 {[%clk 0:00:07]}  Qf2+ {[%clk 0:00:43]} 44. Kh1 {[%clk 0:00:06]}  Rf3 {[%clk 0:00:40]} 45. Re8+ {[%clk 0:00:06]}  Kh7 {[%clk 0:00:40]} 46. Qc2+ {[%clk 0:00:06]} 1-0


[Site "https://www.chess.com"]

[Event "Titled Tuesday Blitz January 10 Early 2023"]
[White "Ashraf, Artin"]
[Black "Pultinevicius, Paulius"]
[WhiteFideId "22514805"]
[BlackFideId "12809390"]
[WhiteElo "2314"]
[BlackElo "2537"]
[Result "1-0"]
[Round "02"]
[TimeControl "180+2"]
[Date "2023.01.10"]
[WhiteClock "0:00:08"]
[BlackClock "0:00:22"]

1. d4 {[%clk 0:02:59]}  d5 {[%clk 0:03:00]} 2. c4 {[%clk 0:02:58]}  e6 {[%clk 0:03:01]} 3. Nf3 {[%clk 0:02:57]}  a6 {[%clk 0:03:01]} 4. e3 {[%clk 0:02:54]}  Nf6 {[%clk 0:03:00]} 5. b3 {[%clk 0:02:53]}  c5 {[%clk 0:02:58]} 6. Bb2 {[%clk 0:02:50]}  Nc6 {[%clk 0:02:56]} 7. Nbd2 {[%clk 0:02:41]}  b6 {[%clk 0:02:29]} 8. Rc1 {[%clk 0:02:38]}  Bb7 {[%clk 0:02:29]} 9. cxd5 {[%clk 0:02:28]}  exd5 {[%clk 0:02:30]} 10. Bd3 {[%clk 0:02:23]}  Bd6 {[%clk 0:02:30]} 11. O-O {[%clk 0:02:11]}  O-O {[%clk 0:02:30]} 12. Ne5 {[%clk 0:02:11]}  Qe7 {[%clk 0:02:19]} 13. Nxc6 {[%clk 0:02:04]}  Bxc6 {[%clk 0:02:19]} 14. Qe2 {[%clk 0:01:59]}  Bb7 {[%clk 0:02:16]} 15. Rc2 {[%clk 0:01:38]}  Rfe8 {[%clk 0:02:14]} 16. Rfc1 {[%clk 0:01:34]}  Qe6 {[%clk 0:01:42]} 17. Qf3 {[%clk 0:01:00]}  Ne4 {[%clk 0:01:36]} 18. dxc5 {[%clk 0:00:55]}  bxc5 {[%clk 0:01:32]} 19. Bxe4 {[%clk 0:00:47]}  dxe4 {[%clk 0:01:30]} 20. Qh5 {[%clk 0:00:47]}  Rad8 {[%clk 0:01:18]} 21. Ba3 {[%clk 0:00:43]}  Rd7 {[%clk 0:00:53]} 22. Bxc5 {[%clk 0:00:28]}  Bxc5 {[%clk 0:00:50]} 23. Qxc5 {[%clk 0:00:27]}  Red8 {[%clk 0:00:51]} 24. Nf1 {[%clk 0:00:24]}  g6 {[%clk 0:00:49]} 25. Qb4 {[%clk 0:00:21]}  Bc6 {[%clk 0:00:46]} 26. Rxc6 {[%clk 0:00:20]}  Qg4 {[%clk 0:00:46]} 27. h3 {[%clk 0:00:20]}  Qe2 {[%clk 0:00:46]} 28. R6c2 {[%clk 0:00:20]}  Qh5 {[%clk 0:00:45]} 29. Rd2 {[%clk 0:00:18]}  Rxd2 {[%clk 0:00:33]} 30. Nxd2 {[%clk 0:00:19]}  Qd5 {[%clk 0:00:34]} 31. Nf1 {[%clk 0:00:18]}  h5 {[%clk 0:00:34]} 32. Qc5 {[%clk 0:00:17]}  Qe6 {[%clk 0:00:34]} 33. Ng3 {[%clk 0:00:16]}  h4 {[%clk 0:00:33]} 34. Ne2 {[%clk 0:00:16]}  Rd2 {[%clk 0:00:34]} 35. Nf4 {[%clk 0:00:16]}  Qf6 {[%clk 0:00:34]} 36. Qc8+ {[%clk 0:00:16]}  Kh7 {[%clk 0:00:34]} 37. a4 {[%clk 0:00:13]}  Qb2 {[%clk 0:00:35]} 38. Qc4 {[%clk 0:00:13]}  Kg8 {[%clk 0:00:33]} 39. Nxg6 {[%clk 0:00:10]}  Rxf2 {[%clk 0:00:32]} 40. Nf4 {[%clk 0:00:09]}  Qd2 {[%clk 0:00:32]} 41. Qc3 {[%clk 0:00:07]}  Qa2 {[%clk 0:00:28]} 42. Qd4 {[%clk 0:00:07]}  Rc2 {[%clk 0:00:26]} 43. Qd8+ {[%clk 0:00:07]}  Kg7 {[%clk 0:00:25]} 44. Qg5+ {[%clk 0:00:06]}  Kf8 {[%clk 0:00:25]} 45. Rxc2 {[%clk 0:00:07]}  Qxc2 {[%clk 0:00:26]} 46. Qxh4 {[%clk 0:00:07]}  Qxb3 {[%clk 0:00:27]} 47. Qd8+ {[%clk 0:00:07]}  Kg7 {[%clk 0:00:27]} 48. Qd4+ {[%clk 0:00:08]}  Kg8 {[%clk 0:00:28]} 49. Qxe4 {[%clk 0:00:09]}  a5 {[%clk 0:00:29]} 50. Qd4 {[%clk 0:00:09]}  Qb1+ {[%clk 0:00:29]} 51. Kh2 {[%clk 0:00:10]}  Qb8 {[%clk 0:00:29]} 52. h4 {[%clk 0:00:09]}  Qb3 {[%clk 0:00:28]} 53. h5 {[%clk 0:00:10]}  Kh7 {[%clk 0:00:26]} 54. Qf6 {[%clk 0:00:10]}  Kg8 {[%clk 0:00:22]} 55. h6 {[%clk 0:00:09]}  Kf8 {[%clk 0:00:22]} 56. h7 {[%clk 0:00:08]} 1-0


[Site "https://www.chess.com"]

[Event "Titled Tuesday Blitz January 10 Early 2023"]
[White "Zhigalko, Sergei"]
[Black "Pak, Yevgeniy"]
[WhiteFideId "13502956"]
[BlackFideId "14201712"]
[WhiteElo "2572"]
[BlackElo "2384"]
[Result "1-0"]
[Round "02"]
[TimeControl "180+2"]
[Date "2023.01.10"]
[WhiteClock "0:02:22"]
[BlackClock "0:01:36"]

1. e4 {[%clk 0:03:00]}  e5 {[%clk 0:02:57]} 2. Nf3 {[%clk 0:03:00]}  Nc6 {[%clk 0:02:58]} 3. Bc4 {[%clk 0:03:00]}  Bc5 {[%clk 0:02:52]} 4. b4 {[%clk 0:03:00]}  Bxb4 {[%clk 0:02:35]} 5. c3 {[%clk 0:03:00]}  Be7 {[%clk 0:02:33]} 6. d4 {[%clk 0:03:00]}  d6 {[%clk 0:02:31]} 7. Qb3 {[%clk 0:02:58]}  Na5 {[%clk 0:02:29]} 8. Bxf7+ {[%clk 0:02:58]}  Kf8 {[%clk 0:02:29]} 9. Qa4 {[%clk 0:02:59]}  Kxf7 {[%clk 0:02:25]} 10. Qxa5 {[%clk 0:02:59]}  Bf6 {[%clk 0:01:57]} 11. dxe5 {[%clk 0:02:49]}  dxe5 {[%clk 0:01:56]} 12. O-O {[%clk 0:02:32]}  Qe7 {[%clk 0:01:48]} 13. Ba3 {[%clk 0:02:27]}  b6 {[%clk 0:01:47]} 14. Qd5+ {[%clk 0:02:25]}  Qe6 {[%clk 0:01:36]} 15. Qxa8 {[%clk 0:02:22]} 1-0


[Site "https://www.chess.com"]